[Event "*** Titled Tuesday Blitz"]
[Site "Chess.com"]
[Date "2020.10.27"]
[Round "8"]
[White "LastHeroJr"]
[Black "midedu"]
[Result "1-0"]
[WhiteElo "2396"]
[BlackElo "2024"]
[TimeControl "180+1"]
[EndTime "11:29:46 PDT"]
[Termination "LastHeroJr won on time"]

1. e4 {[%clk 0:02:53.6]} 1... c5 {[%clk 0:02:59.3]} 2. Nf3 {[%clk 0:02:53.6]}
2... Nc6 {[%clk 0:02:58.9]} 3. d4 {[%clk 0:02:53.2]} 3... cxd4 {[%clk
0:02:58.5]} 4. Nxd4 {[%clk 0:02:54.1]} 4... Nf6 {[%clk 0:02:58.9]} 5. Nc3 {[%clk
0:02:54.2]} 5... Qb6 {[%clk 0:02:58.6]} 6. Nb3 {[%clk 0:02:52.5]} 6... e6 {[%clk
0:02:58.4]} 7. a3 {[%clk 0:02:38.1]} 7... a6 {[%clk 0:02:57.7]} 8. Qe2 {[%clk
0:02:35.6]} 8... d6 {[%clk 0:02:56.6]} 9. g4 {[%clk 0:02:29.8]} 9... Be7 {[%clk
0:02:55.8]} 10. g5 {[%clk 0:02:29.3]} 10... Nd7 {[%clk 0:02:55.8]} 11. h4 {[%clk
0:02:26.1]} 11... Qc7 {[%clk 0:02:50.4]} 12. h5 {[%clk 0:02:23.7]} 12... b5
{[%clk 0:02:50.1]} 13. Bg2 {[%clk 0:02:16.8]} 13... Rb8 {[%clk 0:02:09.8]} 14.
g6 {[%clk 0:02:04.7]} 14... fxg6 {[%clk 0:02:06]} 15. hxg6 {[%clk 0:02:05.6]}
15... h6 {[%clk 0:02:06.1]} 16. Be3 {[%clk 0:01:43.4]} 16... Rf8 {[%clk
0:01:48.1]} 17. f4 {[%clk 0:01:21]} 17... b4 {[%clk 0:01:43]} 18. axb4 {[%clk
0:01:20.1]} 18... Nxb4 {[%clk 0:01:43.1]} 19. Nd4 {[%clk 0:00:51.3]} 19... Nc5
{[%clk 0:01:27.1]} 20. O-O {[%clk 0:00:36.6]} 20... Bb7 {[%clk 0:00:55.3]} 21.
f5 {[%clk 0:00:25.6]} 21... e5 {[%clk 0:00:49.9]} 22. Ne6 {[%clk 0:00:25.7]}
22... Nxe6 {[%clk 0:00:48.3]} 23. fxe6 {[%clk 0:00:26.6]} 23... Bf6 {[%clk
0:00:41.4]} 24. Rad1 {[%clk 0:00:17.9]} 24... Ke7 {[%clk 0:00:40.1]} 25. Rd2
{[%clk 0:00:11.6]} 25... Kxe6 {[%clk 0:00:26.2]} 26. Rfd1 {[%clk 0:00:11.5]}
26... Rbd8 {[%clk 0:00:25.4]} 27. Bh3+ {[%clk 0:00:11.5]} 27... Ke7 {[%clk
0:00:24.9]} 28. Bf5 {[%clk 0:00:04.6]} 28... Bc8 {[%clk 0:00:14.2]} 29. Qf2
{[%clk 0:00:04.5]} 29... Bxf5 {[%clk 0:00:13.7]} 30. exf5 {[%clk 0:00:05.4]}
30... Rfe8 {[%clk 0:00:09.5]} 31. Bb6 {[%clk 0:00:05.1]} 31... Qc6 {[%clk
0:00:07.3]} 32. Bxd8+ {[%clk 0:00:05.1]} 32... Rxd8 {[%clk 0:00:07.6]} 33. Nd5+
{[%clk 0:00:04.8]} 33... Nxd5 {[%clk 0:00:07.1]} 34. Rxd5 {[%clk 0:00:05.7]}
34... Kf8 {[%clk 0:00:07.4]} 35. c3 {[%clk 0:00:06.2]} 35... Kg8 {[%clk
0:00:06]} 36. Qd2 {[%clk 0:00:06.3]} 36... Be7 {[%clk 0:00:06.1]} 37. Qe3 {[%clk
0:00:05.7]} 37... Rb8 {[%clk 0:00:05.7]} 38. Qe2 {[%clk 0:00:04.6]} 38... Qc7
{[%clk 0:00:04.2]} 39. R5d2 {[%clk 0:00:04.5]} 39... Qc8 {[%clk 0:00:04.1]} 40.
Qe4 {[%clk 0:00:04.3]} 40... Qc5+ {[%clk 0:00:04.1]} 41. Kg2 {[%clk 0:00:04.1]}
41... Kh8 {[%clk 0:00:03.6]} 42. Qf3 {[%clk 0:00:03.8]} 42... Qc7 {[%clk
0:00:02.7]} 43. Re2 {[%clk 0:00:04]} 43... a5 {[%clk 0:00:02.5]} 44. Rd5 {[%clk
0:00:04.1]} 44... Bf6 {[%clk 0:00:01.3]} 45. Qd3 {[%clk 0:00:03]} 1-0

[Event "*** Titled Tuesday Blitz"]
[Site "Chess.com"]
[Date "2020.10.27"]
[Round "8"]
[White "PavelChernomordik"]
[Black "chesstrainer2042"]
[Result "0-1"]
[WhiteElo "2291"]
[BlackElo "2412"]
[TimeControl "180+1"]
[EndTime "11:29:46 PDT"]
[Termination "chesstrainer2042 won on time"]

1. e4 {[%clk 0:03:00.9]} 1... e5 {[%clk 0:02:59.1]} 2. Nf3 {[%clk 0:03:00.5]}
2... Nc6 {[%clk 0:02:59.3]} 3. Bb5 {[%clk 0:03:00.5]} 3... a6 {[%clk 0:02:58.8]}
4. Ba4 {[%clk 0:03:00.1]} 4... Nf6 {[%clk 0:02:59.4]} 5. Qe2 {[%clk 0:02:58.8]}
5... b5 {[%clk 0:02:58.1]} 6. Bb3 {[%clk 0:02:58.2]} 6... Bc5 {[%clk 0:02:57.3]}
7. a4 {[%clk 0:02:57.6]} 7... Rb8 {[%clk 0:02:54.9]} 8. axb5 {[%clk 0:02:55.5]}
8... axb5 {[%clk 0:02:55.1]} 9. d3 {[%clk 0:02:51.5]} 9... d6 {[%clk 0:02:50.3]}
10. h3 {[%clk 0:02:51.2]} 10... h6 {[%clk 0:02:50.1]} 11. Nbd2 {[%clk
0:02:46.5]} 11... O-O {[%clk 0:02:45.5]} 12. g4 {[%clk 0:02:42]} 12... Be6
{[%clk 0:02:36.4]} 13. c3 {[%clk 0:02:30.6]} 13... b4 {[%clk 0:02:31.3]} 14. c4
{[%clk 0:02:27.8]} 14... Nh7 {[%clk 0:02:25.9]} 15. Nf1 {[%clk 0:02:24.9]} 15...
Ra8 {[%clk 0:02:20.8]} 16. Rxa8 {[%clk 0:02:20.3]} 16... Qxa8 {[%clk 0:02:19.6]}
17. Ng3 {[%clk 0:02:19]} 17... f6 {[%clk 0:02:12.9]} 18. Nf5 {[%clk 0:02:15.4]}
18... Ng5 {[%clk 0:02:11.1]} 19. Bxg5 {[%clk 0:01:57.5]} 19... fxg5 {[%clk
0:02:08.7]} 20. O-O {[%clk 0:01:53.2]} 20... Kh7 {[%clk 0:02:06.2]} 21. h4
{[%clk 0:01:46.7]} 21... gxh4 {[%clk 0:02:03.2]} 22. g5 {[%clk 0:01:41]} 22...
Qd8 {[%clk 0:01:39.3]} 23. N5xh4 {[%clk 0:01:26.5]} 23... Bg4 {[%clk 0:01:27.5]}
24. g6+ {[%clk 0:01:21.6]} 24... Kh8 {[%clk 0:01:17.9]} 25. Nf5 {[%clk
0:01:20.9]} 25... Rxf5 {[%clk 0:01:14.4]} 26. exf5 {[%clk 0:01:11.4]} 26... Nd4
{[%clk 0:01:14.4]} 27. Nxd4 {[%clk 0:01:02.4]} 27... Bxe2 {[%clk 0:01:10.9]} 28.
Nxe2 {[%clk 0:01:02.4]} 28... Qg5+ {[%clk 0:01:09.1]} 29. Kh2 {[%clk 0:01:00.7]}
29... Qh5+ {[%clk 0:01:08.9]} 30. Kg2 {[%clk 0:00:58]} 30... Qxe2 {[%clk
0:01:08]} 31. Ra1 {[%clk 0:00:53.9]} 31... Qxf2+ {[%clk 0:01:07.1]} 32. Kh1
{[%clk 0:00:46.6]} 32... Qf3+ {[%clk 0:01:01.9]} 33. Kh2 {[%clk 0:00:44]} 33...
Kg8 {[%clk 0:00:38.5]} 34. d4 {[%clk 0:00:33.1]} 34... exd4 {[%clk 0:00:28.9]}
35. Bd1 {[%clk 0:00:28.7]} 35... Qf4+ {[%clk 0:00:26.7]} 36. Kh1 {[%clk
0:00:25.2]} 36... Kf8 {[%clk 0:00:26.9]} 37. Ra8+ {[%clk 0:00:12.2]} 37... Ke7
{[%clk 0:00:26.6]} 38. Rg8 {[%clk 0:00:12.5]} 38... Kf6 {[%clk 0:00:26.3]} 39.
Rf8+ {[%clk 0:00:09.8]} 39... Kg5 {[%clk 0:00:25.8]} 40. f6 {[%clk 0:00:09.2]}
40... Qf1+ {[%clk 0:00:22.4]} 41. Kh2 {[%clk 0:00:06.6]} 41... d3 {[%clk
0:00:21.4]} 42. fxg7 {[%clk 0:00:03.6]} 42... Bg1+ {[%clk 0:00:20.3]} 43. Kg3
{[%clk 0:00:02.9]} 43... Qe1+ {[%clk 0:00:19.9]} 44. Kg2 {[%clk 0:00:01.8]}
44... Qd2+ {[%clk 0:00:19.8]} 0-1

[Event "*** Titled Tuesday Blitz"]
[Site "Chess.com"]
[Date "2020.10.27"]
[Round "8"]
[White "Zmof"]
[Black "KacperPolOK"]
[Result "0-1"]
[WhiteElo "2214"]
[BlackElo "2428"]
[TimeControl "180+1"]
[EndTime "11:29:47 PDT"]
[Termination "KacperPolOK won by resignation"]

1. e4 {[%clk 0:03:00]} 1... c5 {[%clk 0:02:59.7]} 2. Nf3 {[%clk 0:02:56.5]} 2...
Nc6 {[%clk 0:02:59.7]} 3. Bb5 {[%clk 0:02:55.2]} 3... d6 {[%clk 0:02:58.5]} 4.
Bxc6+ {[%clk 0:02:54.2]} 4... bxc6 {[%clk 0:02:58.4]} 5. O-O {[%clk 0:02:52.2]}
5... e5 {[%clk 0:02:58.5]} 6. c3 {[%clk 0:02:46.1]} 6... f5 {[%clk 0:02:58.5]}
7. exf5 {[%clk 0:02:42.3]} 7... Nf6 {[%clk 0:02:57.3]} 8. d4 {[%clk 0:02:41.6]}
8... cxd4 {[%clk 0:02:57]} 9. cxd4 {[%clk 0:02:41.3]} 9... e4 {[%clk 0:02:57.5]}
10. Nh4 {[%clk 0:02:38.4]} 10... Be7 {[%clk 0:02:54.7]} 11. Nc3 {[%clk
0:02:35.1]} 11... d5 {[%clk 0:02:52.1]} 12. f3 {[%clk 0:02:35.1]} 12... Nd7
{[%clk 0:02:05.7]} 13. fxe4 {[%clk 0:02:30.6]} 13... Bxh4 {[%clk 0:02:05.6]} 14.
Qh5+ {[%clk 0:02:27.9]} 14... Kf8 {[%clk 0:02:04.5]} 15. exd5 {[%clk 0:02:27.1]}
15... cxd5 {[%clk 0:01:58.4]} 16. Nxd5 {[%clk 0:02:25.6]} 16... Nf6 {[%clk
0:01:58.3]} 17. Qxh4 {[%clk 0:02:16]} 17... Qxd5 {[%clk 0:01:56.7]} 18. Bg5
{[%clk 0:02:15]} 18... Qd6 {[%clk 0:01:50.5]} 19. Rae1 {[%clk 0:02:04.5]} 19...
Bd7 {[%clk 0:01:28.4]} 20. Re6 {[%clk 0:02:03.9]} 20... Bxe6 {[%clk 0:01:28.7]}
21. fxe6 {[%clk 0:02:03.9]} 21... Ke8 {[%clk 0:01:23]} 22. e7 {[%clk 0:01:40.1]}
22... Kxe7 {[%clk 0:01:14.3]} 23. Bxf6+ {[%clk 0:01:30.2]} 23... gxf6 {[%clk
0:01:13.9]} 24. Re1+ {[%clk 0:01:22.1]} 24... Kd7 {[%clk 0:00:59.1]} 25. Qg4+
{[%clk 0:01:19]} 25... Kc7 {[%clk 0:00:58.1]} 26. Rc1+ {[%clk 0:01:17.5]} 26...
Kb6 {[%clk 0:00:57.8]} 27. d5 {[%clk 0:01:08.9]} 27... Rac8 {[%clk 0:00:55.2]}
28. Rxc8 {[%clk 0:01:00.3]} 28... Rxc8 {[%clk 0:00:43.4]} 29. Qxc8 {[%clk
0:00:59.3]} 29... Qxd5 {[%clk 0:00:43.6]} 30. Qc3 {[%clk 0:00:45.3]} 30... f5
{[%clk 0:00:32.6]} 31. g3 {[%clk 0:00:30.6]} 31... a5 {[%clk 0:00:29.9]} 32. Kf2
{[%clk 0:00:27.6]} 32... Qxa2 {[%clk 0:00:27.3]} 33. Qf6+ {[%clk 0:00:26.3]}
33... Kb7 {[%clk 0:00:27.2]} 34. Qe7+ {[%clk 0:00:23.2]} 34... Kc6 {[%clk
0:00:27]} 35. Qf6+ {[%clk 0:00:21.7]} 35... Kc7 {[%clk 0:00:26.5]} 36. Qg7+
{[%clk 0:00:17.7]} 36... Kd6 {[%clk 0:00:24.9]} 37. Qf6+ {[%clk 0:00:17.7]}
37... Qe6 {[%clk 0:00:20.6]} 38. Qxe6+ {[%clk 0:00:15.3]} 38... Kxe6 {[%clk
0:00:21.5]} 39. Ke3 {[%clk 0:00:13.8]} 39... Kd5 {[%clk 0:00:21.3]} 40. Kf4
{[%clk 0:00:13.6]} 40... Kc4 {[%clk 0:00:20.8]} 41. Kxf5 {[%clk 0:00:11.8]}
41... Kb3 {[%clk 0:00:21.4]} 42. g4 {[%clk 0:00:12.2]} 42... Kxb2 {[%clk
0:00:21.9]} 43. g5 {[%clk 0:00:11.4]} 43... a4 {[%clk 0:00:22.5]} 44. h4 {[%clk
0:00:12.1]} 44... a3 {[%clk 0:00:22.7]} 45. h5 {[%clk 0:00:12.7]} 45... a2
{[%clk 0:00:23.3]} 46. g6 {[%clk 0:00:12.8]} 46... hxg6+ {[%clk 0:00:23.3]} 47.
Kxg6 {[%clk 0:00:10.5]} 47... a1=Q {[%clk 0:00:23.6]} 48. h6 {[%clk 0:00:11.4]}
48... Qg1+ {[%clk 0:00:23]} 49. Kh7 {[%clk 0:00:11.6]} 49... Qa7+ {[%clk
0:00:22.3]} 50. Kh8 {[%clk 0:00:11.7]} 50... Qb8+ {[%clk 0:00:22.6]} 51. Kh7
{[%clk 0:00:12]} 51... Qc7+ {[%clk 0:00:23.1]} 52. Kh8 {[%clk 0:00:12.6]} 52...
Qd8+ {[%clk 0:00:23.6]} 53. Kh7 {[%clk 0:00:13.2]} 53... Qd7+ {[%clk 0:00:24.2]}
54. Kh8 {[%clk 0:00:13.9]} 54... Qe8+ {[%clk 0:00:24.7]} 55. Kh7 {[%clk
0:00:14.4]} 55... Qf8 {[%clk 0:00:24.5]} 56. Kg6 {[%clk 0:00:13.4]} 56... Qh8
{[%clk 0:00:24.6]} 0-1

[Event "*** Titled Tuesday Blitz"]
[Site "Chess.com"]
[Date "2020.10.27"]
[Round "8"]
[White "FairChess_on_YouTube"]
[Black "Zhuu96"]
[Result "1-0"]
[WhiteElo "2989"]
[BlackElo "2889"]
[TimeControl "180+1"]
[EndTime "11:29:48 PDT"]
[Termination "FairChess_on_YouTube won by resignation"]

1. d4 {[%clk 0:02:55.8]} 1... Nf6 {[%clk 0:02:59.4]} 2. c4 {[%clk 0:02:55.5]}
2... g6 {[%clk 0:02:58.3]} 3. Nc3 {[%clk 0:02:55.3]} 3... d5 {[%clk 0:02:58.9]}
4. cxd5 {[%clk 0:02:55.4]} 4... Nxd5 {[%clk 0:02:59.1]} 5. e4 {[%clk 0:02:55.9]}
5... Nxc3 {[%clk 0:02:58.7]} 6. bxc3 {[%clk 0:02:56.8]} 6... Bg7 {[%clk
0:02:59.2]} 7. Nf3 {[%clk 0:02:57.4]} 7... c5 {[%clk 0:02:58.8]} 8. Be2 {[%clk
0:02:58]} 8... O-O {[%clk 0:02:55.7]} 9. O-O {[%clk 0:02:57.5]} 9... b6 {[%clk
0:02:56.1]} 10. Bg5 {[%clk 0:02:55.7]} 10... Bb7 {[%clk 0:02:50.7]} 11. Re1
{[%clk 0:02:53.2]} 11... Nc6 {[%clk 0:02:39.7]} 12. d5 {[%clk 0:02:49.5]} 12...
Ne5 {[%clk 0:02:39.6]} 13. Qd2 {[%clk 0:02:43.5]} 13... Qc7 {[%clk 0:02:29.6]}
14. Rad1 {[%clk 0:02:25.6]} 14... Rad8 {[%clk 0:02:23.9]} 15. h3 {[%clk
0:02:11.4]} 15... a6 {[%clk 0:01:58.4]} 16. c4 {[%clk 0:02:10.4]} 16... Rd7
{[%clk 0:01:54.6]} 17. Rb1 {[%clk 0:02:04.5]} 17... e6 {[%clk 0:01:47.5]} 18.
Bf4 {[%clk 0:01:58.6]} 18... b5 {[%clk 0:01:30.1]} 19. cxb5 {[%clk 0:01:43.5]}
19... exd5 {[%clk 0:01:27.1]} 20. bxa6 {[%clk 0:01:40.5]} 20... Ba8 {[%clk
0:01:22.7]} 21. exd5 {[%clk 0:01:28.4]} 21... Rxd5 {[%clk 0:01:17.8]} 22. Qe3
{[%clk 0:01:27.7]} 22... Qc6 {[%clk 0:00:55.3]} 23. Nxe5 {[%clk 0:00:47.3]}
23... Rxe5 {[%clk 0:00:55.1]} 24. Qf3 {[%clk 0:00:47.6]} 24... Qe6 {[%clk
0:00:40.6]} 25. Rb7 {[%clk 0:00:23.1]} 25... Rf5 {[%clk 0:00:30.9]} 26. Qe3
{[%clk 0:00:17.8]} 26... Qxa2 {[%clk 0:00:19.6]} 27. Bd6 {[%clk 0:00:14.1]}
27... Bd4 {[%clk 0:00:18.5]} 28. Qe7 {[%clk 0:00:10]} 28... Rc8 {[%clk
0:00:12.8]} 29. Kh2 {[%clk 0:00:03.7]} 29... Rxf2 {[%clk 0:00:11.7]} 30. Qd7
{[%clk 0:00:03.7]} 30... Qe6 {[%clk 0:00:07.2]} 31. Qxe6 {[%clk 0:00:03.5]}
31... fxe6 {[%clk 0:00:07.3]} 32. Bc4 {[%clk 0:00:04.2]} 32... Kh8 {[%clk
0:00:04.6]} 33. Rxe6 {[%clk 0:00:03.7]} 33... Rd8 {[%clk 0:00:04.1]} 34. Ree7
{[%clk 0:00:03.9]} 34... Bxb7 {[%clk 0:00:03.1]} 35. axb7 {[%clk 0:00:04.8]}
35... Rb2 {[%clk 0:00:03.2]} 36. Bc7 {[%clk 0:00:04.9]} 36... Rf8 {[%clk
0:00:02.9]} 37. Bd5 {[%clk 0:00:05.5]} 37... Rb1 {[%clk 0:00:02.7]} 38. Bd6
{[%clk 0:00:04.9]} 38... Bg1+ {[%clk 0:00:02.8]} 39. Kg3 {[%clk 0:00:05.4]}
39... Bf2+ {[%clk 0:00:03.3]} 40. Kh2 {[%clk 0:00:05.6]} 40... Bg1+ {[%clk
0:00:03.5]} 41. Kg3 {[%clk 0:00:06.2]} 41... Bf2+ {[%clk 0:00:04.2]} 42. Kg4
{[%clk 0:00:06.6]} 42... Rb4+ {[%clk 0:00:03.8]} 43. Re4 {[%clk 0:00:07.2]}
43... Rb6 {[%clk 0:00:02.8]} 44. Be5+ {[%clk 0:00:07.4]} 44... Rbf6 {[%clk
0:00:01.5]} 45. Bxf6+ {[%clk 0:00:07.4]} 1-0

[Event "*** Titled Tuesday Blitz"]
[Site "Chess.com"]
[Date "2020.10.27"]
[Round "8"]
[White "kuli4ik"]
[Black "Sibelephant"]
[Result "1/2-1/2"]
[WhiteElo "2889"]
[BlackElo "3076"]
[TimeControl "180+1"]
[EndTime "11:29:49 PDT"]
[Termination "Game drawn - insufficient material"]

1. d4 {[%clk 0:03:00.9]} 1... d5 {[%clk 0:02:59.6]} 2. Nf3 {[%clk 0:03:00.6]}
2... Nf6 {[%clk 0:02:59.3]} 3. Bf4 {[%clk 0:03:01.1]} 3... c5 {[%clk 0:02:58.8]}
4. dxc5 {[%clk 0:03:02]} 4... e6 {[%clk 0:02:56.2]} 5. e3 {[%clk 0:03:02.3]}
5... Bxc5 {[%clk 0:02:56.2]} 6. Be2 {[%clk 0:03:02.2]} 6... Nc6 {[%clk
0:02:56.1]} 7. O-O {[%clk 0:03:02.7]} 7... O-O {[%clk 0:02:56.1]} 8. c4 {[%clk
0:03:03.3]} 8... b6 {[%clk 0:02:36.1]} 9. Nc3 {[%clk 0:03:00.8]} 9... dxc4
{[%clk 0:02:36.3]} 10. Bxc4 {[%clk 0:03:00.1]} 10... Bb7 {[%clk 0:02:36.4]} 11.
Qe2 {[%clk 0:02:59.5]} 11... Qe7 {[%clk 0:02:34.7]} 12. Bg5 {[%clk 0:02:59.1]}
12... h6 {[%clk 0:02:33.3]} 13. Bh4 {[%clk 0:02:59.1]} 13... g5 {[%clk
0:02:18.1]} 14. Bg3 {[%clk 0:02:57]} 14... Nh5 {[%clk 0:02:18.1]} 15. Ba6 {[%clk
0:02:37.5]} 15... Bxa6 {[%clk 0:02:08.7]} 16. Qxa6 {[%clk 0:02:38.4]} 16... Rfd8
{[%clk 0:01:59.9]} 17. Rfd1 {[%clk 0:02:35.9]} 17... Bb4 {[%clk 0:01:08.5]} 18.
Qc4 {[%clk 0:02:18.9]} 18... Na5 {[%clk 0:00:55.2]} 19. Qe2 {[%clk 0:02:11.1]}
19... Nxg3 {[%clk 0:00:52.3]} 20. hxg3 {[%clk 0:02:10.4]} 20... Bxc3 {[%clk
0:00:52.5]} 21. bxc3 {[%clk 0:02:11.3]} 21... Qc5 {[%clk 0:00:52.2]} 22. Nd4
{[%clk 0:01:56.7]} 22... Rd5 {[%clk 0:00:43.8]} 23. e4 {[%clk 0:01:21.3]} 23...
Rd7 {[%clk 0:00:41.1]} 24. Rd3 {[%clk 0:01:08.7]} 24... Rad8 {[%clk 0:00:38.6]}
25. Rad1 {[%clk 0:01:08.6]} 25... Nc6 {[%clk 0:00:20.7]} 26. Qh5 {[%clk
0:00:40.5]} 26... Nxd4 {[%clk 0:00:19.3]} 27. cxd4 {[%clk 0:00:37.5]} 27... Rxd4
{[%clk 0:00:19.1]} 28. Rxd4 {[%clk 0:00:34.5]} 28... Rxd4 {[%clk 0:00:19.6]} 29.
Rxd4 {[%clk 0:00:35]} 29... Qxd4 {[%clk 0:00:20.3]} 30. Qxh6 {[%clk 0:00:35.7]}
30... Qa1+ {[%clk 0:00:20.2]} 31. Kh2 {[%clk 0:00:35.1]} 31... Qh8 {[%clk
0:00:20.8]} 32. Qxh8+ {[%clk 0:00:34.4]} 32... Kxh8 {[%clk 0:00:21.7]} 33. f4
{[%clk 0:00:34.6]} 33... b5 {[%clk 0:00:21.6]} 34. Kg1 {[%clk 0:00:32.3]} 34...
Kg7 {[%clk 0:00:16.9]} 35. Kf2 {[%clk 0:00:32.6]} 35... Kg6 {[%clk 0:00:17.4]}
36. Ke3 {[%clk 0:00:32.5]} 36... Kh5 {[%clk 0:00:16.5]} 37. Kd4 {[%clk
0:00:28.4]} 37... a5 {[%clk 0:00:11.3]} 38. Kc5 {[%clk 0:00:26.2]} 38... Kg4
{[%clk 0:00:08.2]} 39. Kxb5 {[%clk 0:00:25.1]} 39... gxf4 {[%clk 0:00:05.5]} 40.
gxf4 {[%clk 0:00:25.3]} 40... Kxf4 {[%clk 0:00:06.4]} 41. Kxa5 {[%clk
0:00:25.9]} 41... Kxe4 {[%clk 0:00:06.8]} 42. a4 {[%clk 0:00:25.5]} 42... e5
{[%clk 0:00:06.9]} 43. Kb5 {[%clk 0:00:23]} 43... Kd3 {[%clk 0:00:03.7]} 44. a5
{[%clk 0:00:23.4]} 44... e4 {[%clk 0:00:04.2]} 45. a6 {[%clk 0:00:24.3]} 45...
e3 {[%clk 0:00:05]} 46. a7 {[%clk 0:00:24.5]} 46... e2 {[%clk 0:00:05.7]} 47.
a8=Q {[%clk 0:00:25.4]} 47... e1=Q {[%clk 0:00:05.9]} 48. Qd5+ {[%clk
0:00:23.4]} 48... Ke2 {[%clk 0:00:03.7]} 49. Qxf7 {[%clk 0:00:18]} 49... Qg3
{[%clk 0:00:03.8]} 50. Qa2+ {[%clk 0:00:15.8]} 50... Kf1 {[%clk 0:00:03.8]} 51.
Qc2 {[%clk 0:00:14.4]} 51... Qxg2 {[%clk 0:00:03.5]} 52. Qxg2+ {[%clk
0:00:15.3]} 52... Kxg2 {[%clk 0:00:04]} 1/2-1/2

[Event "*** Titled Tuesday Blitz"]
[Site "Chess.com"]
[Date "2020.10.27"]
[Round "8"]
[White "Zhigalko_Sergei"]
[Black "PaulfromSPb"]
[Result "1-0"]
[WhiteElo "2910"]
[BlackElo "2709"]
[TimeControl "180+1"]
[EndTime "11:29:49 PDT"]
[Termination "Zhigalko_Sergei won on time"]

1. e4 {[%clk 0:03:00.9]} 1... c5 {[%clk 0:02:58]} 2. Nf3 {[%clk 0:03:00.6]} 2...
d6 {[%clk 0:02:58.1]} 3. d4 {[%clk 0:03:00.8]} 3... cxd4 {[%clk 0:02:59]} 4.
Qxd4 {[%clk 0:03:01.6]} 4... a6 {[%clk 0:02:56.2]} 5. Bc4 {[%clk 0:03:01.3]}
5... e6 {[%clk 0:02:54.5]} 6. Nc3 {[%clk 0:02:58]} 6... Nc6 {[%clk 0:02:52.5]}
7. Qd3 {[%clk 0:02:58.1]} 7... b5 {[%clk 0:02:50.9]} 8. Bb3 {[%clk 0:02:58.2]}
8... Bb7 {[%clk 0:02:46.7]} 9. Bf4 {[%clk 0:02:53]} 9... Qc7 {[%clk 0:02:38.8]}
10. O-O-O {[%clk 0:02:37.2]} 10... Rd8 {[%clk 0:02:38]} 11. g4 {[%clk
0:02:10.5]} 11... Nf6 {[%clk 0:02:22.4]} 12. g5 {[%clk 0:02:08.8]} 12... Nh5
{[%clk 0:02:21.9]} 13. Be3 {[%clk 0:02:08.3]} 13... g6 {[%clk 0:02:14.7]} 14.
Nd4 {[%clk 0:01:43.1]} 14... Bg7 {[%clk 0:02:13.7]} 15. Ndxb5 {[%clk 0:01:37.2]}
15... axb5 {[%clk 0:02:04.3]} 16. Nxb5 {[%clk 0:01:37.4]} 16... Qb8 {[%clk
0:01:45.5]} 17. Nxd6+ {[%clk 0:01:35.1]} 17... Kf8 {[%clk 0:01:34.2]} 18. f4
{[%clk 0:01:10.1]} 18... h6 {[%clk 0:01:28.3]} 19. Qb5 {[%clk 0:00:38]} 19...
Ba8 {[%clk 0:01:27.7]} 20. Qc5 {[%clk 0:00:35.9]} 20... Kg8 {[%clk 0:01:26.5]}
21. f5 {[%clk 0:00:32.2]} 21... Bf8 {[%clk 0:01:10]} 22. e5 {[%clk 0:00:19.4]}
22... Nxe5 {[%clk 0:01:00.9]} 23. Qxe5 {[%clk 0:00:19.1]} 23... Bxd6 {[%clk
0:00:57.6]} 24. Qd4 {[%clk 0:00:17.8]} 24... Bxh1 {[%clk 0:00:37.9]} 25. fxe6
{[%clk 0:00:17.4]} 25... fxe6 {[%clk 0:00:35.8]} 26. Rxh1 {[%clk 0:00:11.3]}
26... Bf4 {[%clk 0:00:29.6]} 27. Qe4 {[%clk 0:00:05.4]} 27... Bxe3+ {[%clk
0:00:28.9]} 28. Kb1 {[%clk 0:00:06.1]} 28... Kh7 {[%clk 0:00:16.6]} 29. Qxe3
{[%clk 0:00:06.6]} 29... Qf4 {[%clk 0:00:14.4]} 30. Qa7+ {[%clk 0:00:06.8]}
30... Ng7 {[%clk 0:00:13.6]} 31. gxh6 {[%clk 0:00:07.7]} 31... Qxh6 {[%clk
0:00:13.5]} 32. a3 {[%clk 0:00:07]} 32... Rhf8 {[%clk 0:00:13]} 33. Re1 {[%clk
0:00:06.3]} 33... Qh4 {[%clk 0:00:11.6]} 34. Rxe6 {[%clk 0:00:05.8]} 34... Qf2
{[%clk 0:00:06.3]} 35. Qb7 {[%clk 0:00:04]} 35... Qf1+ {[%clk 0:00:05.8]} 36.
Ka2 {[%clk 0:00:04.3]} 36... Rf7 {[%clk 0:00:06]} 37. Re7 {[%clk 0:00:03.2]}
37... Rxe7 {[%clk 0:00:05.6]} 38. Qxe7 {[%clk 0:00:04.1]} 38... Rd4 {[%clk
0:00:05.4]} 39. Qe5 {[%clk 0:00:03.8]} 39... Qf4 {[%clk 0:00:05]} 40. Qe7 {[%clk
0:00:03.6]} 40... Rd1 {[%clk 0:00:04.5]} 41. Qc5 {[%clk 0:00:02.2]} 41... Qc1
{[%clk 0:00:03.6]} 42. Bf7 {[%clk 0:00:01.3]} 42... Qb1+ {[%clk 0:00:02.7]} 43.
Kb3 {[%clk 0:00:01.9]} 43... Rg1 {[%clk 0:00:02.4]} 44. Qe3 {[%clk 0:00:01.9]}
44... Qf1 {[%clk 0:00:01.3]} 45. Qc3 {[%clk 0:00:01.9]} 1-0